bitfinex-derivatives/quotes_SOLF0:USTF0_20241230
["timestamp","ask_amount","ask_price","bid_price","bid_amount"]
[1735582922462,6.4246,193.64,193.58,2.5852]
[1735582922463,3.84,193.64,193.58,2.5852]
[1735582922663,21.98727812,193.68,193.58,2.5852]
[1735582922868,3.84,193.67,193.5,24.35577812]
[1735582923170,2.5846,193.64,193.5,24.35577812]
[1735582923365,21.98727812,193.68,193.51,0.5372]
[1735582923571,1.4715,193.68,193.62,2.5847]
[1735582923767,1.5216,193.69,193.56,24.35577812]
[1735582924165,1.5216,193.69,193.63,2.5846]
[1735582925267,1.5216,193.69,193.59,20.51577812]
[1735582925469,24.35577812,193.8,193.65,20.51577812]
[1735582925669,1.6039,193.79,193.65,20.51577812]
[1735582925867,5.4439,193.79,193.65,20.51577812]
[1735582926066,5.4439,193.79,193.62,20.51577812]
[1735582926067,3.84,193.78,193.62,20.51577812]
[1735582926470,3.84,193.78,193.63,3.84]
[1735582926670,2.5831,193.75,193.67,2.5841]
[1735582926972,1.4885,193.74,193.63,3.84]
[1735582927171,1.4885,193.74,193.7,2.5836]
[1735582927369,1.4885,193.74,193.67,20.51577812]
[1735582927564,1.4885,193.82,193.67,20.51577812]
[1735582927767,1.4885,193.82,193.77,2.5827]
[1735582927968,1.4885,193.82,193.72,3.84]
[1735582928374,1.4885,193.9,193.73,20.51577812]
[1735582928570,1.4885,193.9,193.76,20.51577812]
[1735582928968,4.0697,193.9,193.76,20.51577812]
[1735582929570,4.0697,193.9,193.82,2.5821]
[1735582929771,1.4885,193.9,193.82,2.5821]
[1735582930470,1.4885,193.9,193.79,20.51577812]
[1735582930974,1.4885,193.9,193.85,2.5817]
[1735582931764,1.4885,193.9,193.79,20.51577812]
[1735582932669,1.4885,193.9,193.76,3.84]
[1735582932869,4.0697,193.9,193.82,2.582]
[1735582933774,1.4885,193.9,193.76,24.35577812]
[1735582933973,3.84,193.89,193.76,20.51577812]
[1735582934170,20.51577812,193.88,193.73,24.35577812]
[1735582934373,2.582,193.83,193.76,2.5828]
[1735582934574,20.51577812,193.88,193.73,3.84]
[1735582934973,3.84,193.88,193.73,24.35577812]
[1735582935275,24.35577812,193.88,193.73,24.35577812]
[1735582935477,2.5819,193.84,193.77,2.5828]
[1735582935667,24.35577812,193.88,193.73,24.35577812]
[1735582936071,2.5817,193.85,193.78,2.5826]
[1735582936278,24.35577812,193.88,193.7,20.51577812]
[1735582936475,24.35577812,193.88,193.71,3.84]
[1735582936773,20.51577812,193.85,193.67,20.51577812]
[1735582937073,20.51577812,193.79,193.62,20.51577812]
[1735582937272,2.5833,193.73,193.66,2.5842]
[1735582937477,20.51577812,193.73,193.58,3.84]
[1735582937678,20.51577812,193.73,193.59,0.94995415]
[1735582937973,20.51577812,193.7,193.55,3.84]
[1735582938273,5.4504,193.69,193.56,20.51577812]
[1735582938477,4.1943,193.69,193.56,20.51577812]
[1735582938777,3.84,193.74,193.6,20.51577812]
[1735582938973,3.84,193.74,193.57,24.35577812]
[1735582939474,3.84,193.74,193.47,53.72]
[1735582939475,20.51577812,193.66,193.51,20.51577812]
[1735582939677,20.51577812,193.66,193.47,53.72]
[1735582939678,8.5681,193.65,193.52,0.95033617]
[1735582939979,20.51577812,193.63,193.49,0.95044757]
[1735582940170,2.5851,193.6,193.48,20.51577812]
[1735582940379,2.5851,193.6,193.52,2.5861]
[1735582940573,20.51577812,193.63,193.48,20.51577812]
[1735582940777,2.5852,193.6,193.48,20.51577812]
[1735582941278,2.5846,193.64,193.57,2.5854]
[1735582941470,8.5681,193.65,193.51,20.51577812]
[1735582941675,4.7281,193.65,193.54,20.51577812]
[1735582941883,1.5497,193.65,193.61,2.5848]
[1735582942677,1.5497,193.65,193.58,2.5853]
[1735582942876,1.5497,193.65,193.55,3.84]
[1735582943677,1.5497,193.65,193.54,20.51577812]
[1735582943877,1.5497,193.65,193.51,20.51577812]
[1735582944080,20.51577812,193.63,193.49,3.84]
[1735582944279,3.84,193.62,193.49,3.84]
[1735582944477,2.5854,193.58,193.51,2.5862]
[1735582944671,1.4695,193.61,193.51,2.5862]
[1735582945078,1.5734,193.6,193.51,2.5862]
[1735582945477,1.5734,193.6,193.46,37.20034332]
[1735582945678,2.5852,193.59,193.52,2.5861]
[1735582945984,1.5734,193.6,193.46,33.36034332]
[1735582946377,34.93374332,193.6,193.43,33.36034332]
[1735582946887,34.93374332,193.6,193.48,2.5866]
[1735582947586,34.93374332,193.6,193.46,2.5868]
[1735582947773,33.36034332,193.56,193.39,33.36034332]
[1735582947977,2.5864,193.5,193.39,33.36034332]
[1735582948180,33.36034332,193.52,193.38,3.84]
[1735582948381,2.5867,193.48,193.38,3.84]
[1735582948672,1.5736,193.49,193.36,0.5372]
[1735582948873,1.5736,193.49,193.35,33.36034332]
[1735582949184,1.5885,193.48,193.35,33.36034332]
[1735582949379,2.5868,193.47,193.35,33.36034332]
[1735582950285,2.5868,193.47,193.4,2.5877]
[1735582951288,2.5868,193.47,193.41,2.5875]
[1735582951783,1.5736,193.49,193.38,33.36034332]
[1735582952086,1.5736,193.49,193.35,33.36034332]
[1735582952282,2.5872,193.45,193.33,2.25614722]
[1735582952482,1.504,193.44,193.33,2.25614722]
[1735582952779,1.504,193.44,193.39,2.5878]
[1735582954086,1.504,193.44,193.33,2.25614722]
[1735582954889,1.504,193.44,193.4,2.5877]
[1735582955086,1.504,193.44,193.35,33.36034332]
[1735582955386,1.504,193.44,193.38,2.5879]
[1735582955889,1.504,193.44,193.35,33.36034332]
[1735582956090,1.504,193.44,193.37,2.588]
[1735582956285,1.504,193.44,193.35,33.36034332]
[1735582956492,1.504,193.44,193.29,0.5372]
[1735582956493,3.84,193.43,193.29,37.73754332]
[1735582956790,2.5875,193.42,193.29,33.89754332]
[1735582957286,3.84,193.43,193.29,33.89754332]
[1735582957489,4.0913,193.44,193.32,33.36034332]
[1735582957490,1.504,193.44,193.32,33.36034332]
[1735582957686,1.504,193.44,193.41,2.5875]
[1735582958890,1.5736,193.49,193.38,33.36034332]
[1735582959086,1.5953,193.52,193.38,33.36034332]
[1735582959284,1.5953,193.52,193.39,0.95101242]
[1735582959593,1.5953,193.52,193.42,33.36034332]
[1735582959799,5.3204,193.57,193.43,3.84]
[1735582960092,1.4977,193.56,193.5,2.5863]
[1735582960293,1.4977,193.56,193.43,4.79080684]
[1735582960490,3.84,193.61,193.53,2.5859]
[1735582960684,33.36034332,193.64,193.48,33.36034332]
[1735582960883,3.84,193.63,193.48,33.36034332]
[1735582961087,3.84,193.63,193.54,2.5858]
[1735582961292,3.84,193.63,193.48,33.36034332]
[1735582961687,3.84,193.63,193.48,37.20034332]
[1735582962492,3.84,193.63,193.45,37.20034332]
[1735582962690,3.84,193.63,193.45,3.84]
[1735582963187,3.84,193.63,193.46,0.95072992]
[1735582963389,33.36034332,193.6,193.44,3.84]
[1735582963694,2.9986,193.59,193.44,3.84]
[1735582963895,2.5856,193.57,193.51,2.5862]
[1735582964089,1.5115,193.58,193.44,3.84]
[1735582964395,1.5115,193.58,193.44,24.37229843]
[1735582964584,2.5855,193.57,193.51,2.5862]
[1735582965287,6.4255,193.57,193.51,2.5862]
[1735582965494,6.4255,193.57,193.44,24.37229843]
[1735582965694,3.84,193.57,193.53,2.586]
[1735582966097,1.5115,193.58,193.48,20.53229843]
[1735582966698,1.5115,193.58,193.44,24.37229843]
[1735582966893,1.5115,193.58,193.45,0.95074132]
[1735582967099,2.5855,193.57,193.45,0.95074132]
[1735582967297,2.5855,193.57,193.44,24.37229843]
[1735582967498,1.5115,193.58,193.44,24.37229843]
[1735582967698,2.5858,193.55,193.48,2.5866]
[1735582967899,3.84,193.57,193.44,24.37229843]
[1735582968296,3.84,193.57,193.51,2.5861]
[1735582968597,3.84,193.57,193.44,24.37229843]
[1735582968802,2.586,193.53,193.46,2.5868]
[1735582969204,3.84,193.57,193.44,20.53229843]
[1735582969500,6.4255,193.57,193.44,20.53229843]
[1735582970092,2.5858,193.55,193.48,2.5866]
[1735582970297,2.5858,193.55,193.44,20.53229843]
[1735582970697,2.5859,193.54,193.42,3.84]
[1735582971495,6.4255,193.57,193.5,2.5863]
[1735582971701,3.84,193.57,193.5,2.5863]
[1735582972102,3.84,193.57,193.42,3.84]
[1735582972301,7.9369,193.58,193.52,2.5861]
[1735582972903,5.3515,193.58,193.52,2.5861]
[1735582973104,2.5855,193.57,193.52,2.5861]
[1735582974413,1.5115,193.58,193.53,2.5859]
[1735582974614,5.3515,193.58,193.53,2.5859]
[1735582975412,2.5855,193.57,193.53,2.5859]
[1735582976504,7.9368,193.58,193.54,2.5857]
[1735582976915,7.9368,193.58,193.45,20.53229843]
[1735582977308,7.9368,193.58,193.55,2.5857]
[1735582977309,5.3515,193.58,193.55,2.5857]
[1735582977812,5.3515,193.58,193.45,20.53229843]
[1735582978015,7.9369,193.58,193.53,2.5859]
[1735582978409,1.5115,193.58,193.45,20.53229843]
[1735582979218,1.5115,193.58,193.43,27.44234796]
[1735582979421,1.5115,193.58,193.44,27.44234796]
[1735582979719,2.5859,193.54,193.48,2.5865]
[1735582979913,2.5859,193.54,193.44,27.44234796]
[1735582980114,2.5861,193.53,193.48,2.5866]
[1735582980319,4.1409,193.53,193.48,2.5866]
[1735582980822,4.1409,193.53,193.41,20.53229843]
[1735582981710,1.5548,193.53,193.41,20.53229843]
[1735582981909,1.5548,193.53,193.41,27.39288542]
[1735582982120,1.5115,193.58,193.42,0.95085967]
[1735582982323,1.5115,193.58,193.46,20.53229843]
[1735582982517,4.0969,193.58,193.51,2.5861]
[1735582982817,4.0969,193.58,193.46,24.37229843]
[1735582983220,4.0966,193.58,193.52,2.5858]
[1735582983523,4.0966,193.58,193.46,24.37229843]
[1735582983721,4.0966,193.58,193.55,2.5854]
[1735582983722,1.5115,193.58,193.55,2.5854]
[1735582984225,1.5115,193.58,193.46,24.37229843]
[1735582984523,1.5115,193.58,193.46,51.81464639]
[1735582985223,1.5115,193.58,193.53,2.5856]
[1735582985716,1.5115,193.58,193.54,2.5855]
[1735582986318,1.5115,193.58,193.55,2.5855]
[1735582987919,20.53229843,193.68,193.52,20.53229843]
[1735582988124,1.5675,193.69,193.52,24.37229843]
[1735582988320,1.5675,193.69,193.65,2.5841]
[1735582988522,1.5675,193.69,193.58,24.37229843]
[1735582989120,1.5675,193.69,193.66,2.5839]
[1735582989817,1.5675,193.69,193.58,24.37229843]
[1735582990325,1.5675,193.69,193.61,20.53229843]
[1735582990522,3.84,193.76,193.7,2.5833]
[1735582990727,5.416,193.76,193.61,20.53229843]
[1735582991020,20.53229843,193.71,193.57,3.84]
[1735582991225,24.37229843,193.71,193.57,3.84]
[1735582991423,2.5836,193.69,193.57,3.84]
[1735582992019,24.37229843,193.71,193.57,3.84]
[1735582992227,24.37229843,193.71,193.54,10.70058699]
[1735582992716,2.5841,193.66,193.54,6.86058699]
[1735582992917,1.576,193.65,193.54,3.84]
[1735582993734,1.576,193.65,193.6,2.5848]
[1735582994224,1.576,193.65,193.54,3.84]
[1735582994424,1.576,193.65,193.6,2.5848]
[1735582994618,1.576,193.65,193.54,3.84]
[1735582994820,5.416,193.65,193.54,3.84]
[1735582995125,5.416,193.65,193.56,2.5853]
[1735582995326,5.416,193.65,193.54,3.84]
[1735582996128,5.416,193.65,193.6,2.5847]
[1735582996832,5.416,193.65,193.54,3.84]
[1735582997532,2.5844,193.63,193.54,3.84]
[1735582998228,2.5843,193.64,193.54,3.84]
[1735582998433,2.5843,193.64,193.53,0.5409]
[1735582998434,5.416,193.65,193.53,0.5409]
[1735582998731,2.5849,193.6,193.49,20.53229843]
[1735582999134,2.5849,193.6,193.53,2.5858]
[1735582999328,25.94829843,193.65,193.48,27.44234796]
[1735582999329,2.5854,193.56,193.48,27.44234796]
[1735582999530,3.84,193.59,193.48,27.44234796]
[1735582999834,3.84,193.59,193.49,2.5862]
[1735583000137,3.1231,193.58,193.46,21.06889843]
[1735583000525,5.7084,193.58,193.46,21.06889843]
[1735583000833,3.84,193.57,193.49,2.5863]
[1735583001228,1.5212,193.56,193.46,20.53229843]
[1735583001728,1.5212,193.56,193.43,24.37229843]
[1735583001924,4.1068,193.56,193.43,24.37229843]
[1735583002135,1.5212,193.56,193.43,24.37229843]
[1735583002330,1.5212,193.56,193.43,20.53229843]
[1735583003231,2.5857,193.55,193.49,2.5865]
[1735583003423,1.5212,193.56,193.43,20.53229843]
[1735583003928,5.3612,193.56,193.4,31.77018542]
[1735583004135,5.3612,193.56,193.43,20.53229843]
[1735583004528,5.3612,193.56,193.5,2.5863]
[1735583004728,5.3612,193.56,193.46,20.53229843]
[1735583005229,5.3612,193.56,193.53,2.586]
[1735583005426,1.5212,193.56,193.53,2.586]
[1735583005629,1.5212,193.56,193.46,24.37229843]
[1735583005828,1.5212,193.56,193.49,20.53229843]
[1735583006231,1.5212,193.56,193.46,24.37229843]
[1735583006629,3.84,193.61,193.49,20.53229843]
[1735583006824,1.6291,193.62,193.58,2.5852]
[1735583008227,1.538,193.66,193.55,20.53229843]
[1735583008423,1.6291,193.68,193.58,20.53229843]
[1735583008939,1.6291,193.68,193.62,2.5847]
[1735583009132,1.6291,193.68,193.53,0.537]
[1735583009335,1.5689,193.67,193.52,20.53229843]
[1735583009627,20.53229843,193.66,193.49,24.37229843]
[1735583009834,20.53229843,193.66,193.53,6.86058699]
[1735583010524,20.53229843,193.66,193.56,2.5856]
[1735583010729,1.5689,193.67,193.53,6.86058699]
[1735583011134,2.5845,193.64,193.59,2.5851]
[1735583011325,1.5689,193.67,193.52,20.53229843]
[1735583011727,1.5689,193.67,193.55,20.53229843]
[1735583011932,1.5689,193.67,193.52,20.53229843]
[1735583012334,1.5689,193.67,193.52,24.37229843]
[1735583013531,2.5846,193.64,193.58,2.5853]
[1735583013730,1.5689,193.67,193.52,24.37229843]
[1735583014233,2.5845,193.64,193.58,2.5853]
[1735583014434,1.5689,193.67,193.52,24.37229843]
[1735583014635,2.5843,193.66,193.52,24.37229843]
[1735583014834,1.5689,193.67,193.52,24.37229843]
[1735583015936,1.6291,193.68,193.58,20.53229843]
[1735583016138,1.6291,193.68,193.62,20.53229843]
[1735583016333,1.6291,193.68,193.67,2.5841]
[1735583017234,20.53229843,193.77,193.62,20.53229843]
[1735583017434,5.4211,193.76,193.62,20.53229843]
[1735583018230,1.5811,193.76,193.62,20.53229843]
[1735583018432,5.4211,193.76,193.62,20.53229843]
[1735583018637,8.004,193.76,193.62,20.53229843]
[1735583019036,1.5811,193.76,193.62,20.53229843]
[1735583019233,1.5811,193.76,193.66,20.53229843]
[1735583019740,1.5811,193.76,193.71,2.5834]
[1735583020434,1.5811,193.76,193.66,20.53229843]
[1735583020636,4.164,193.76,193.69,2.5837]
[1735583021035,4.164,193.76,193.64,3.84]
[1735583022340,1.5811,193.76,193.64,3.84]
[1735583023044,1.5811,193.76,193.71,2.5834]
[1735583023640,1.5811,193.76,193.64,3.84]
[1735583023946,1.5811,193.76,193.72,2.5834]
[1735583024146,1.5811,193.76,193.64,3.84]
[1735583024338,3.2415,193.89,193.68,20.53229843]
[1735583024544,1.5488,193.84,193.72,20.53229843]
[1735583025643,1.5488,193.84,193.75,20.53229843]
[1735583026143,228.5305002,194.06,193.78,20.53229843]
[1735583026344,1.5488,193.91,193.86,2.5814]
[1735583026548,1.5488,193.91,193.82,20.53229843]
[1735583026842,1.5488,193.91,193.87,2.5813]
[1735583027242,1.5488,193.91,193.82,20.53229843]
[1735583027747,1.5488,193.91,193.79,24.35229843]
[1735583027942,1.5488,193.91,193.76,20.53229843]
[1735583028150,2.5815,193.86,193.79,2.5823]
[1735583028849,3.82,193.88,193.73,4.3548]
[1735583030647,3.82,193.88,193.72,20.53229843]
[1735583031451,2.5819,193.83,193.77,2.5827]
[1735583031653,1.5823,193.82,193.72,20.53229843]
[1735583034445,1.5823,193.82,193.79,2.5824]
[1735583035452,2.5815,193.86,193.79,2.5824]
[1735583035653,1.4758,193.86,193.82,2.582]
[1735583035956,1.4758,193.86,193.76,20.53229843]
[1735583036549,1.4758,193.86,193.79,2.5824]
[1735583036752,4.1967,193.89,193.79,2.5824]
[1735583036753,1.6156,193.89,193.79,20.53229843]
[1735583037157,5.3241,193.9,193.86,2.5815]
[1735583037357,3.82,193.93,193.86,2.5815]
[1735583037752,3.82,193.93,193.79,20.53229843]
[1735583037963,1.5579,193.94,193.79,20.53229843]
[1735583038151,5.3779,193.94,193.79,20.53229843]
[1735583038657,2.5808,193.92,193.86,2.5815]
[1735583038858,5.3779,193.94,193.79,20.53229843]
[1735583039047,2.581,193.9,193.79,20.53229843]
[1735583039252,5.3779,193.94,193.79,20.53229843]
[1735583039553,2.5812,193.89,193.83,2.5819]
[1735583040051,20.53229843,193.93,193.77,3.82]
[1735583040248,2.5814,193.87,193.77,3.82]
[1735583040455,1.606,193.86,193.77,3.82]
[1735583040656,1.606,193.86,193.76,20.53229843]
[1735583041057,1.606,193.86,193.81,2.5822]
[1735583041555,1.606,193.86,193.76,20.53229843]
[1735583041857,1.606,193.86,193.72,20.53229843]
[1735583042157,2.5819,193.83,193.72,20.53229843]
[1735583042354,1.606,193.86,193.72,20.53229843]
[1735583043256,1.606,193.86,193.8,2.5822]
[1735583043556,1.606,193.86,193.72,20.53229843]
[1735583044351,2.9952,193.85,193.72,20.53229843]
[1735583045254,20.53229843,193.84,193.69,20.53229843]
[1735583045457,2.583,193.76,193.7,2.5836]
[1735583045659,1.5221,193.75,193.68,2.25223854]
[1735583046562,1.5221,193.75,193.7,2.5836]
[1735583046861,1.5221,193.75,193.68,2.25223854]
[1735583047163,1.5221,193.75,193.7,2.5836]
[1735583047359,1.5221,193.75,193.68,2.25223854]
[1735583048457,4.1051,193.75,193.7,2.5836]
[1735583048656,4.1051,193.75,193.62,3.82]
[1735583048657,1.5221,193.75,193.63,71.54159519]
[1735583048857,1.5221,193.75,193.6,47.97464639]
[1735583049062,2.5839,193.68,193.62,2.5847]
[1735583049761,3.82,193.7,193.6,27.39288542]
[1735583050358,3.82,193.7,193.65,2.5841]
[1735583051563,3.82,193.7,193.66,2.584]
[1735583051761,3.82,193.7,193.6,20.53229843]
[1735583053466,3.82,193.7,193.66,2.5839]
[1735583053663,3.82,193.7,193.6,20.53229843]
[1735583053968,3.82,193.7,193.65,2.584]
[1735583054270,3.82,193.7,193.6,20.53229843]
[1735583054569,3.82,193.7,193.63,2.5844]
[1735583054766,6.4036,193.7,193.6,20.53229843]
[1735583055269,3.82,193.7,193.64,2.5842]
[1735583056570,2.5835,193.7,193.64,2.5842]
[1735583056870,3.82,193.72,193.58,11.21488699]
[1735583057072,2.5838,193.68,193.61,2.5846]
[1735583057271,2.5838,193.68,193.58,31.79664796]
[1735583057874,2.5838,193.68,193.62,2.5844]
[1735583058078,2.5838,193.68,193.58,27.97664796]
[1735583058274,2.5838,193.68,193.6,12.81508899]
[1735583059276,12.81508899,193.7,193.54,27.44234796]
[1735583059474,14.34998899,193.67,193.54,40.25743695]
[1735583059668,12.81508899,193.64,193.54,27.44234796]
[1735583060167,12.81508899,193.61,193.54,27.44234796]
[1735583060370,2.5851,193.58,193.54,27.44234796]
[1735583060573,3.82,193.6,193.54,27.44234796]
[1735583060772,3.82,193.6,193.53,54.88469592]
[1735583060978,6.4049,193.6,193.55,2.5854]
[1735583061473,2.5851,193.58,193.53,2.5858]
[1735583061680,3.82,193.6,193.5,6.86058699]
[1735583061884,3.82,193.6,193.48,12.81508899]
[1735583062175,12.81508899,193.58,193.45,12.81508899]
[1735583062780,2.5855,193.56,193.51,2.586]
[1735583063469,3.82,193.56,193.51,2.5859]
[1735583063877,3.82,193.56,193.45,12.81508899]
[1735583064073,6.4054,193.56,193.51,2.5859]
[1735583064378,3.82,193.56,193.45,12.81508899]
[1735583064573,2.5856,193.55,193.51,2.586]
[1735583064778,3.82,193.56,193.48,12.81508899]
[1735583065576,1.6236,193.57,193.48,12.81508899]
[1735583065776,1.6236,193.57,193.51,12.81508899]
[1735583066281,1.6236,193.57,193.48,20.52541242]
[1735583066672,5.3723,193.6,193.56,2.5852]
[1735583066976,3.82,193.6,193.51,20.52541242]
[1735583067183,1.4843,193.64,193.51,20.52541242]
[1735583067381,1.4843,193.64,193.6,2.5848]
[1735583067581,1.4843,193.64,193.54,20.52541242]
[1735583068381,3.82,193.69,193.58,20.52541242]
[1735583068679,1.4843,193.7,193.58,20.52541242]
[1735583068882,1.4843,193.7,193.62,20.52541242]
[1735583069077,2.5826,193.77,193.69,2.5835]
[1735583069277,3.82,193.76,193.62,24.34541242]
[1735583069675,2.5834,193.71,193.63,2.5843]
[1735583069882,1.5678,193.7,193.59,20.52541242]
[1735583070887,1.5678,193.7,193.59,24.34541242]
[1735583071086,1.5678,193.7,193.64,2.5842]
[1735583071287,1.5678,193.7,193.56,20.52541242]
[1735583071587,22.10301242,193.69,193.52,0.5361]
[1735583071778,22.10301242,193.69,193.51,27.44234796]
[1735583071779,20.52541242,193.66,193.51,27.44234796]
[1735583071978,3.82,193.65,193.51,27.44234796]
[1735583072387,3.82,193.65,193.5,20.52541242]
[1735583073589,2.5847,193.61,193.54,2.5855]
[1735583073783,3.82,193.65,193.48,20.52541242]
[1735583073982,2.5842,193.65,193.58,2.5851]
[1735583074186,3.82,193.64,193.58,2.5851]
[1735583074387,3.82,193.64,193.52,20.52541242]
[1735583075989,6.4043,193.64,193.57,2.5852]
[1735583077087,3.82,193.64,193.52,20.52541242]
[1735583077284,3.82,193.64,193.47,4.3528]
[1735583077491,3.82,193.64,193.5,20.52541242]
[1735583078287,2.5845,193.63,193.5,20.52541242]
[1735583078989,2.5848,193.61,193.5,20.52541242]
[1735583079189,1.5003,193.6,193.5,20.52541242]
[1735583079687,4.0851,193.6,193.53,2.5858]
[1735583080289,2.585,193.59,193.53,2.5858]
[1735583080493,1.5003,193.6,193.51,2.586]
[1735583080686,1.6004,193.59,193.47,0.5328]
[1735583080887,2.5854,193.56,193.47,0.5328]
[1735583081591,2.5856,193.55,193.49,2.5862]
[1735583082388,3.82,193.58,193.46,2.5866]
[1735583082389,2.5857,193.54,193.46,2.5866]
[1735583082695,20.52541242,193.52,193.43,27.44234796]
[1735583082901,6.9708,193.51,193.4,27.44234796]
[1735583083589,6.9708,193.51,193.43,2.5871]
[1735583083986,6.9708,193.51,193.36,49.38518491]
[1735583084888,2.5865,193.48,193.4,2.5874]
[1735583085098,2.5865,193.48,193.36,49.38518491]
[1735583085297,6.9708,193.51,193.35,27.38599941]
[1735583085298,6.9708,193.51,193.35,20.52541242]
[1735583085597,3.1508,193.51,193.39,20.52541242]
[1735583085902,3.1508,193.51,193.47,2.5865]
[1735583086195,3.1508,193.51,193.36,20.52541242]
[1735583086591,2.5862,193.5,193.43,2.587]
[1735583086791,3.1508,193.51,193.36,20.52541242]
[1735583086993,3.82,193.5,193.36,20.52541242]
[1735583087500,3.1508,193.51,193.37,0.95097655]
[1735583087893,1.6132,193.51,193.37,0.95097655]
[1735583088096,1.6132,193.51,193.47,2.5864]
[1735583088602,1.6132,193.51,193.36,47.96776038]
[1735583088793,4.1994,193.51,193.44,2.587]
[1735583089095,1.6132,193.51,193.44,2.587]
[1735583089691,2.5863,193.5,193.44,2.587]
[1735583090004,1.6132,193.51,193.45,2.5867]
[1735583090299,1.6132,193.51,193.36,20.52541242]
[1735583090501,1.6132,193.51,193.37,0.95107633]
[1735583091000,4.1992,193.51,193.41,2.5873]
[1735583091203,4.1992,193.51,193.36,20.52541242]
[1735583091405,4.1992,193.51,193.37,0.95105633]
[1735583091704,1.6132,193.51,193.46,2.5867]
[1735583093505,1.6132,193.51,193.48,2.5864]
[1735583093803,3.82,193.5,193.48,2.5864]
[1735583094201,2.5858,193.53,193.4,20.52541242]
[1735583094406,3.82,193.52,193.49,2.5863]
[1735583094807,22.00851242,193.57,193.4,20.52541242]
[1735583095006,3.82,193.56,193.41,4.77080726]
[1735583095304,3.82,193.56,193.42,0.95080726]
[1735583095704,21.43268436,193.75,193.48,20.52541242]
[1735583095907,1.4831,193.66,193.62,2.5845]
[1735583096106,1.4831,193.66,193.49,4.77080726]
[1735583096107,25.82851242,193.66,193.49,20.52541242]
[1735583096307,1.5689,193.65,193.5,3.82]
[1735583096599,2.5848,193.61,193.5,3.82]
[1735583096906,1.5689,193.65,193.49,20.52541242]
[1735583097107,2.5849,193.61,193.54,2.5856]
[1735583097503,1.5689,193.65,193.49,24.34541242]
[1735583097699,1.5689,193.65,193.45,20.52541242]
[1735583097903,20.52541242,193.58,193.44,10.68058699]
[1735583098208,8.4641,193.57,193.44,6.86058699]
[1735583098908,8.4641,193.57,193.4,68.8675889]
[1735583099903,2.5863,193.51,193.45,2.587]
[1735583100107,8.4641,193.57,193.45,2.587]
[1735583100403,8.4641,193.57,193.4,68.8675889]
[1735583100710,2.5863,193.51,193.46,2.5867]
[1735583100905,20.52541242,193.54,193.4,48.34217648]
[1735583101909,2.5864,193.5,193.4,48.34217648]
[1735583102103,3.82,193.51,193.4,48.34217648]
[1735583102407,3.82,193.54,193.4,68.8675889]
[1735583102610,3.82,193.55,193.4,68.8675889]
[1735583103000,2.5862,193.51,193.46,2.5868]
[1735583103314,3.82,193.55,193.4,48.34217648]
[1735583103706,3.82,193.55,193.41,20.52541242]
[1735583104208,2.5858,193.54,193.48,2.5865]
[1735583104405,24.34541242,193.56,193.42,0.534]
[1735583104608,24.34541242,193.56,193.46,2.5868]
[1735583104609,2.5861,193.52,193.46,2.5868]
[1735583104810,2.5861,193.52,193.42,0.534]
[1735583105012,24.34541242,193.56,193.42,0.534]
[1735583105813,2.5857,193.55,193.42,0.534]
[1735583106113,24.34541242,193.56,193.42,0.534]
[1735583106512,2.5859,193.54,193.48,2.5865]
[1735583107814,2.5859,193.54,193.49,2.5864]
[1735583108221,24.34541242,193.56,193.47,2.5866]
[1735583108513,24.34541242,193.56,193.4,48.34217648]
[1735583108909,3.82,193.56,193.41,20.52541242]
[1735583109811,20.52541242,193.54,193.4,48.34217648]
[1735583110013,2.5863,193.5,193.45,2.5868]
[1735583110210,20.52541242,193.54,193.45,2.5868]
[1735583110611,20.52541242,193.54,193.4,48.34217648]
[1735583110914,2.5864,193.5,193.46,2.5868]